[Event "Late-Titled-Tuesday-Blitz-March-19-2024"]
[Site "Chess.com"]
[Date "2024.03.19"]
[Round "5"]
[White "C_K_G"]
[Black "Chessbard1972"]
[Result "1-0"]
[WhiteElo "2204"]
[BlackElo "2296"]
[TimeControl "180+1"]
[EndTime "14:55:14 PDT"]
[Termination "C_K_G won on time"]

1. e4 {[%clk 0:03:00.9]} 1... g6 {[%clk 0:02:59.8]} 2. d4 {[%clk 0:02:51.5]}
2... Bg7 {[%clk 0:02:59.6]} 3. Nf3 {[%clk 0:02:50.5]} 3... c6 {[%clk 0:02:59.7]}
4. c4 {[%clk 0:02:49.7]} 4... d6 {[%clk 0:02:58.6]} 5. h3 {[%clk 0:02:49.2]}
5... Nf6 {[%clk 0:02:57.7]} 6. Nc3 {[%clk 0:02:48.3]} 6... O-O {[%clk
0:02:57.4]} 7. Be2 {[%clk 0:02:47.6]} 7... Nbd7 {[%clk 0:02:55.4]} 8. Be3 {[%clk
0:02:47.6]} 8... e5 {[%clk 0:02:55]} 9. Qd2 {[%clk 0:02:47.2]} 9... Re8 {[%clk
0:02:53.9]} 10. d5 {[%clk 0:02:41.9]} 10... cxd5 {[%clk 0:02:52.6]} 11. cxd5
{[%clk 0:02:41.4]} 11... Nc5 {[%clk 0:02:45]} 12. Bxc5 {[%clk 0:02:35.6]} 12...
dxc5 {[%clk 0:02:44.6]} 13. O-O {[%clk 0:02:35.4]} 13... Bd7 {[%clk 0:02:39.1]}
14. a4 {[%clk 0:02:34.4]} 14... Rf8 {[%clk 0:02:35.2]} 15. Nxe5 {[%clk
0:02:19.6]} 15... Nxe4 {[%clk 0:02:28.2]} 16. Nxe4 {[%clk 0:02:19.2]} 16... Bxe5
{[%clk 0:02:27.8]} 17. Nxc5 {[%clk 0:02:18.4]} 17... Bc8 {[%clk 0:02:25.6]} 18.
Bf3 {[%clk 0:02:14.6]} 18... b6 {[%clk 0:02:07.3]} 19. Nd3 {[%clk 0:02:09.8]}
19... Bd6 {[%clk 0:02:06.4]} 20. Rfe1 {[%clk 0:02:02.8]} 20... Ba6 {[%clk
0:01:58.8]} 21. Nb4 {[%clk 0:01:58]} 21... Bb7 {[%clk 0:01:47.1]} 22. Rac1
{[%clk 0:01:45.8]} 22... Qf6 {[%clk 0:01:30.4]} 23. Nc6 {[%clk 0:01:28.3]} 23...
Bf4 {[%clk 0:01:27.2]} 24. Qc3 {[%clk 0:00:51]} 24... Qxc3 {[%clk 0:01:11.7]}
25. Rxc3 {[%clk 0:00:50]} 25... Bd2 {[%clk 0:01:11.5]} 26. Re7 {[%clk 0:00:49]}
26... Bxc3 {[%clk 0:01:11.1]} 27. Rxb7 {[%clk 0:00:43.4]} 27... Bxb2 {[%clk
0:01:10.7]} 28. d6 {[%clk 0:00:43.4]} 28... Bf6 {[%clk 0:00:27.9]} 29. Bd5
{[%clk 0:00:38.2]} 29... Kg7 {[%clk 0:00:20.3]} 30. g4 {[%clk 0:00:33.4]} 30...
g5 {[%clk 0:00:19.4]} 31. Kg2 {[%clk 0:00:32.7]} 31... h6 {[%clk 0:00:19.1]} 32.
Kg3 {[%clk 0:00:27.8]} 32... Rae8 {[%clk 0:00:02.3]} 33. Rxa7 {[%clk 0:00:21]}
33... Be5+ {[%clk 0:00:02.4]} 34. Nxe5 {[%clk 0:00:20.1]} 34... Rxe5 {[%clk
0:00:02.5]} 35. Bc6 {[%clk 0:00:18.2]} 35... Rd8 {[%clk 0:00:01.1]} 36. d7
{[%clk 0:00:17.7]} 36... Rc5 {[%clk 0:00:01.2]} 37. Bb5 {[%clk 0:00:17.8]} 1-0

[Event "Late-Titled-Tuesday-Blitz-March-19-2024"]
[Site "Chess.com"]
[Date "2024.03.19"]
[Round "5"]
[White "Chempiblinka"]
[Black "RodokininEV"]
[Result "0-1"]
[WhiteElo "2359"]
[BlackElo "2682"]
[TimeControl "180+1"]
[EndTime "14:55:15 PDT"]
[Termination "RodokininEV won on time"]

1. Nf3 {[%clk 0:03:00.9]} 1... Nf6 {[%clk 0:02:59.7]} 2. g3 {[%clk 0:03:01.6]}
2... d5 {[%clk 0:02:58.1]} 3. Bg2 {[%clk 0:03:02.5]} 3... Bg4 {[%clk 0:02:58.1]}
4. O-O {[%clk 0:03:00.1]} 4... e6 {[%clk 0:02:58.4]} 5. c4 {[%clk 0:03:00.1]}
5... c6 {[%clk 0:02:58.5]} 6. cxd5 {[%clk 0:02:56.1]} 6... exd5 {[%clk
0:02:58.2]} 7. h3 {[%clk 0:02:53.8]} 7... Bh5 {[%clk 0:02:57.3]} 8. d3 {[%clk
0:02:54.5]} 8... Be7 {[%clk 0:02:56.5]} 9. Nc3 {[%clk 0:02:44.5]} 9... O-O
{[%clk 0:02:53.9]} 10. e4 {[%clk 0:02:44.9]} 10... Bg6 {[%clk 0:02:40.7]} 11.
Nh4 {[%clk 0:02:15.8]} 11... Na6 {[%clk 0:02:30.2]} 12. Nxg6 {[%clk 0:01:51.3]}
12... hxg6 {[%clk 0:02:31.1]} 13. Qe2 {[%clk 0:01:48.6]} 13... Re8 {[%clk
0:02:17.5]} 14. e5 {[%clk 0:01:47.7]} 14... Bc5 {[%clk 0:01:53.6]} 15. Kh2
{[%clk 0:01:39.7]} 15... Nc7 {[%clk 0:01:41.6]} 16. f4 {[%clk 0:01:38.4]} 16...
Nd7 {[%clk 0:01:32.7]} 17. Qg4 {[%clk 0:01:36.4]} 17... Bd4 {[%clk 0:01:27]} 18.
Ne2 {[%clk 0:01:33.5]} 18... Bb6 {[%clk 0:01:24.4]} 19. d4 {[%clk 0:01:28.7]}
19... Ne6 {[%clk 0:01:23.7]} 20. Be3 {[%clk 0:01:26.9]} 20... Ndf8 {[%clk
0:01:18.6]} 21. f5 {[%clk 0:01:24.6]} 21... gxf5 {[%clk 0:01:18.1]} 22. Rxf5
{[%clk 0:01:18.2]} 22... Ng6 {[%clk 0:00:37.9]} 23. Raf1 {[%clk 0:01:14.4]}
23... Re7 {[%clk 0:00:37.2]} 24. h4 {[%clk 0:01:07.5]} 24... Qd7 {[%clk
0:00:37.5]} 25. h5 {[%clk 0:01:06.5]} 25... Ngf8 {[%clk 0:00:37.5]} 26. Bh3
{[%clk 0:00:58.7]} 26... c5 {[%clk 0:00:35]} 27. Rf6 {[%clk 0:00:39.9]} 27...
Nxd4 {[%clk 0:00:29.5]} 28. e6 {[%clk 0:00:22.1]} 28... Ndxe6 {[%clk 0:00:27]}
29. h6 {[%clk 0:00:18.5]} 29... g6 {[%clk 0:00:19.6]} 30. Bc1 {[%clk 0:00:18.5]}
30... d4 {[%clk 0:00:16.3]} 31. Nf4 {[%clk 0:00:17.9]} 31... Nxf4 {[%clk
0:00:15.3]} 32. Qxf4 {[%clk 0:00:18.8]} 32... Qd5 {[%clk 0:00:14]} 33. Bg2
{[%clk 0:00:14.7]} 33... Qh5+ {[%clk 0:00:13.6]} 34. Kg1 {[%clk 0:00:15.2]}
34... c4 {[%clk 0:00:11.7]} 35. Rxf7 {[%clk 0:00:15.5]} 35... d3+ {[%clk
0:00:11.7]} 36. Rf2 {[%clk 0:00:02.8]} 36... Bxf2+ {[%clk 0:00:10.7]} 0-1

[Event "Late-Titled-Tuesday-Blitz-March-19-2024"]
[Site "Chess.com"]
[Date "2024.03.19"]
[Round "5"]
[White "VD_coach"]
[Black "Sanyura"]
[Result "1-0"]
[WhiteElo "2512"]
[BlackElo "2628"]
[TimeControl "180+1"]
[EndTime "14:55:17 PDT"]
[Termination "VD_coach won by checkmate"]

1. Nf3 {[%clk 0:02:42.8]} 1... Nf6 {[%clk 0:02:59.7]} 2. d4 {[%clk 0:02:38.4]}
2... g6 {[%clk 0:02:59.6]} 3. c4 {[%clk 0:02:31.6]} 3... Bg7 {[%clk 0:02:59.5]}
4. g3 {[%clk 0:02:32]} 4... O-O {[%clk 0:02:58.9]} 5. Bg2 {[%clk 0:02:32.5]}
5... d6 {[%clk 0:02:59]} 6. O-O {[%clk 0:02:32.8]} 6... Nbd7 {[%clk 0:02:59.5]}
7. Nc3 {[%clk 0:02:33]} 7... e5 {[%clk 0:03:00.1]} 8. h3 {[%clk 0:02:32.9]} 8...
exd4 {[%clk 0:03:00]} 9. Nxd4 {[%clk 0:02:32.5]} 9... Nc5 {[%clk 0:02:59.6]} 10.
b3 {[%clk 0:02:30.6]} 10... Re8 {[%clk 0:02:59.1]} 11. Bb2 {[%clk 0:02:30.9]}
11... a5 {[%clk 0:02:59.2]} 12. Qc2 {[%clk 0:02:18.9]} 12... a4 {[%clk
0:02:45.6]} 13. Nxa4 {[%clk 0:02:12.4]} 13... Nxa4 {[%clk 0:02:44.5]} 14. bxa4
{[%clk 0:02:13.3]} 14... Nd7 {[%clk 0:02:41.2]} 15. Bc3 {[%clk 0:01:08.3]} 15...
Nc5 {[%clk 0:02:30.7]} 16. a5 {[%clk 0:01:07]} 16... h5 {[%clk 0:01:55.5]} 17.
h4 {[%clk 0:00:51.9]} 17... Bd7 {[%clk 0:01:10.3]} 18. Rab1 {[%clk 0:00:50.8]}
18... Bxd4 {[%clk 0:00:51.5]} 19. Bxd4 {[%clk 0:00:49.3]} 19... Bf5 {[%clk
0:00:52.1]} 20. e4 {[%clk 0:00:44.4]} 20... Bxe4 {[%clk 0:00:51.5]} 21. Bxe4
{[%clk 0:00:43.2]} 21... Nxe4 {[%clk 0:00:50.8]} 22. Rfe1 {[%clk 0:00:33.7]}
22... d5 {[%clk 0:00:48.3]} 23. Rxb7 {[%clk 0:00:22.4]} 23... Rxa5 {[%clk
0:00:41.9]} 24. Ba1 {[%clk 0:00:17.2]} 24... Qa8 {[%clk 0:00:02.2]} 25. Qb2
{[%clk 0:00:15.1]} 25... f6 {[%clk 0:00:02.7]} 26. Rxe4 {[%clk 0:00:11.8]} 26...
Rxe4 {[%clk 0:00:02.5]} 27. Qxf6 {[%clk 0:00:12]} 27... Re1+ {[%clk 0:00:01.9]}
28. Kh2 {[%clk 0:00:11.9]} 28... Rxa1 {[%clk 0:00:02.8]} 29. Qxg6+ {[%clk
0:00:11]} 29... Kf8 {[%clk 0:00:03.3]} 30. Qf6+ {[%clk 0:00:11.1]} 30... Ke8
{[%clk 0:00:03.8]} 31. Qe6+ {[%clk 0:00:10.9]} 31... Kd8 {[%clk 0:00:04.1]} 32.
Rb3 {[%clk 0:00:08.6]} 32... R5xa2 {[%clk 0:00:03.2]} 33. Qf6+ {[%clk
0:00:08.2]} 33... Kd7 {[%clk 0:00:03.5]} 34. Qf7+ {[%clk 0:00:08.4]} 34... Kd6
{[%clk 0:00:03.7]} 35. Qf6+ {[%clk 0:00:08.6]} 35... Kc5 {[%clk 0:00:04.2]} 36.
Qe7+ {[%clk 0:00:06.6]} 36... Kxc4 {[%clk 0:00:04.2]} 37. Qb4# {[%clk
0:00:06.6]} 1-0

[Event "Late-Titled-Tuesday-Blitz-March-19-2024"]
[Site "Chess.com"]
[Date "2024.03.19"]
[Round "5"]
[White "BebeBonito2022"]
[Black "gorgeous1083"]
[Result "1-0"]
[WhiteElo "2293"]
[BlackElo "2059"]
[TimeControl "180+1"]
[EndTime "14:55:17 PDT"]
[Termination "BebeBonito2022 won on time"]

1. d4 {[%clk 0:03:00.9]} 1... Nf6 {[%clk 0:02:59]} 2. c4 {[%clk 0:03:00.7]} 2...
e6 {[%clk 0:02:59.4]} 3. Nc3 {[%clk 0:03:00.9]} 3... Bb4 {[%clk 0:02:58.7]} 4.
e3 {[%clk 0:03:01.2]} 4... O-O {[%clk 0:02:57.8]} 5. Bd2 {[%clk 0:03:01.6]} 5...
Re8 {[%clk 0:02:57.8]} 6. a3 {[%clk 0:02:52.4]} 6... Bf8 {[%clk 0:02:56.8]} 7.
Bd3 {[%clk 0:02:49.4]} 7... d5 {[%clk 0:02:56.8]} 8. Nf3 {[%clk 0:02:45.2]} 8...
c5 {[%clk 0:02:54.9]} 9. O-O {[%clk 0:02:32.1]} 9... Nc6 {[%clk 0:02:51.1]} 10.
dxc5 {[%clk 0:02:26.9]} 10... Bxc5 {[%clk 0:02:49.7]} 11. b4 {[%clk 0:02:26.7]}
11... dxc4 {[%clk 0:02:36.9]} 12. Bxc4 {[%clk 0:02:23.7]} 12... Bd6 {[%clk
0:02:31.4]} 13. e4 {[%clk 0:02:17.8]} 13... Ne5 {[%clk 0:02:23.8]} 14. Be2
{[%clk 0:01:55.4]} 14... a6 {[%clk 0:02:12.9]} 15. Nd4 {[%clk 0:01:54.6]} 15...
Bxb4 {[%clk 0:01:40.2]} 16. axb4 {[%clk 0:01:30.6]} 16... Qxd4 {[%clk 0:01:39]}
17. Qc2 {[%clk 0:01:26.8]} 17... Bd7 {[%clk 0:01:13.2]} 18. Be3 {[%clk
0:01:06.2]} 18... Qxb4 {[%clk 0:00:52.8]} 19. Rfb1 {[%clk 0:01:06.1]} 19... Qf8
{[%clk 0:00:52.7]} 20. Rxb7 {[%clk 0:01:03.1]} 20... Bc6 {[%clk 0:00:46.8]} 21.
Rb6 {[%clk 0:00:59.5]} 21... Rec8 {[%clk 0:00:43.6]} 22. f3 {[%clk 0:00:48.3]}
22... a5 {[%clk 0:00:30.5]} 23. Qb2 {[%clk 0:00:36.7]} 23... Be8 {[%clk
0:00:22.5]} 24. Nd5 {[%clk 0:00:13.5]} 24... Nxd5 {[%clk 0:00:18.5]} 25. exd5
{[%clk 0:00:10.5]} 25... Nc4 {[%clk 0:00:13.5]} 26. Bxc4 {[%clk 0:00:10.4]}
26... Rxc4 {[%clk 0:00:12.6]} 27. dxe6 {[%clk 0:00:10.5]} 27... fxe6 {[%clk
0:00:10.7]} 28. Rxe6 {[%clk 0:00:10]} 28... Bf7 {[%clk 0:00:10.1]} 29. Rb6
{[%clk 0:00:09.4]} 29... Qc8 {[%clk 0:00:07.2]} 30. Rb7 {[%clk 0:00:08]} 30...
Rc2 {[%clk 0:00:06.2]} 31. Qb5 {[%clk 0:00:07.4]} 31... Qe6 {[%clk 0:00:04.9]}
32. Bf2 {[%clk 0:00:04.9]} 1-0

[Event "Late-Titled-Tuesday-Blitz-March-19-2024"]
[Site "Chess.com"]
[Date "2024.03.19"]
[Round "5"]
[White "MathiasWomacka"]
[Black "Cluke86"]
[Result "0-1"]
[WhiteElo "2486"]
[BlackElo "2327"]
[TimeControl "180+1"]
[EndTime "14:55:19 PDT"]
[Termination "Cluke86 won by resignation"]

1. e4 {[%clk 0:03:00.9]} 1... d6 {[%clk 0:02:59.3]} 2. d4 {[%clk 0:02:58.8]}
2... Nf6 {[%clk 0:02:59.3]} 3. Nc3 {[%clk 0:02:58.7]} 3... e5 {[%clk 0:02:59.4]}
4. Nf3 {[%clk 0:02:57.9]} 4... Nbd7 {[%clk 0:02:59]} 5. Bc4 {[%clk 0:02:58.4]}
5... Be7 {[%clk 0:02:59]} 6. O-O {[%clk 0:02:58.4]} 6... c6 {[%clk 0:02:58.8]}
7. a4 {[%clk 0:02:57.1]} 7... Qc7 {[%clk 0:02:57.8]} 8. Re1 {[%clk 0:02:57.7]}
8... h6 {[%clk 0:02:55.9]} 9. h3 {[%clk 0:02:54.8]} 9... g5 {[%clk 0:02:53.5]}
10. Be3 {[%clk 0:02:47.1]} 10... Nf8 {[%clk 0:02:50.9]} 11. Nd2 {[%clk
0:02:42.7]} 11... Ng6 {[%clk 0:02:47.7]} 12. Bf1 {[%clk 0:02:42]} 12... g4
{[%clk 0:02:41.1]} 13. hxg4 {[%clk 0:02:26.1]} 13... Nxg4 {[%clk 0:02:37.8]} 14.
dxe5 {[%clk 0:02:21.5]} 14... dxe5 {[%clk 0:02:35.9]} 15. Nc4 {[%clk 0:02:20]}
15... h5 {[%clk 0:02:13]} 16. a5 {[%clk 0:02:19.8]} 16... Be6 {[%clk 0:02:10.7]}
17. Na4 {[%clk 0:02:06.1]} 17... Nxe3 {[%clk 0:01:36.6]} 18. Rxe3 {[%clk
0:01:55.2]} 18... Nf4 {[%clk 0:01:34.1]} 19. g3 {[%clk 0:01:46.2]} 19... Rg8
{[%clk 0:01:32.4]} 20. Kh1 {[%clk 0:01:41.3]} 20... Nh3 {[%clk 0:01:14.4]} 21.
Bxh3 {[%clk 0:01:32.3]} 21... Bxh3 {[%clk 0:01:12.2]} 22. Qxh5 {[%clk
0:01:14.9]} 22... Be6 {[%clk 0:00:50.9]} 23. Qxe5 {[%clk 0:01:13.5]} 23... Qc8
{[%clk 0:00:46.4]} 24. Nd6+ {[%clk 0:01:10.2]} 24... Bxd6 {[%clk 0:00:45.4]} 25.
Qxd6 {[%clk 0:01:11.1]} 25... Bg4 {[%clk 0:00:18.3]} 26. Kg2 {[%clk 0:01:07.3]}
26... Bh3+ {[%clk 0:00:17.3]} 27. Kg1 {[%clk 0:01:06.6]} 27... Qg4 {[%clk
0:00:15.9]} 28. Nc5 {[%clk 0:01:01.6]} 28... Rd8 {[%clk 0:00:13.9]} 29. Qe5+
{[%clk 0:01:00.6]} 29... Kf8 {[%clk 0:00:14]} 30. Qf6 {[%clk 0:00:57.7]} 30...
Rd1+ {[%clk 0:00:13.3]} 31. Rxd1 {[%clk 0:00:56.8]} 31... Qxd1+ {[%clk
0:00:14.2]} 32. Kh2 {[%clk 0:00:56.7]} 32... Qf1 {[%clk 0:00:09.4]} 33. Qf3
{[%clk 0:00:48.1]} 33... Rh8 {[%clk 0:00:07.7]} 34. g4 {[%clk 0:00:32.1]} 34...
Bxg4+ {[%clk 0:00:08]} 35. Kg3 {[%clk 0:00:32.3]} 35... Bxf3 {[%clk 0:00:07.5]}
36. Rxf3 {[%clk 0:00:31.6]} 36... Rh3+ {[%clk 0:00:05.1]} 37. Kf4 {[%clk
0:00:31.6]} 37... Rxf3+ {[%clk 0:00:06]} 38. Kxf3 {[%clk 0:00:30.8]} 38... Qd1+
{[%clk 0:00:06.1]} 39. Ke3 {[%clk 0:00:28.7]} 39... Qxc2 {[%clk 0:00:06.6]} 40.
Nxb7 {[%clk 0:00:29.1]} 40... Qb3+ {[%clk 0:00:06]} 41. Kd4 {[%clk 0:00:28.4]}
41... Qxb7 {[%clk 0:00:06.9]} 42. Kc3 {[%clk 0:00:27.8]} 42... Qb5 {[%clk
0:00:07.1]} 43. b4 {[%clk 0:00:26.3]} 43... Ke7 {[%clk 0:00:06.9]} 44. f4 {[%clk
0:00:25]} 44... Kd6 {[%clk 0:00:06.7]} 45. e5+ {[%clk 0:00:25.9]} 45... Kd5
{[%clk 0:00:07]} 46. f5 {[%clk 0:00:26.1]} 46... Kxe5 {[%clk 0:00:05.7]} 0-1

[Event "Late-Titled-Tuesday-Blitz-March-19-2024"]
[Site "Chess.com"]
[Date "2024.03.19"]
[Round "5"]
[White "Kimkibo"]
[Black "korkmaz16"]
[Result "1-0"]
[WhiteElo "2299"]
[BlackElo "2561"]
[TimeControl "180+1"]
[EndTime "14:55:21 PDT"]
[Termination "Kimkibo won on time"]

1. d4 {[%clk 0:03:00]} 1... d5 {[%clk 0:02:59.9]} 2. Nf3 {[%clk 0:02:57.6]} 2...
Nf6 {[%clk 0:02:59.9]} 3. Bf4 {[%clk 0:02:58]} 3... c5 {[%clk 0:03:00.1]} 4. e3
{[%clk 0:02:57.7]} 4... Nc6 {[%clk 0:03:00.7]} 5. Nbd2 {[%clk 0:02:57.5]} 5...
Qb6 {[%clk 0:03:01.2]} 6. dxc5 {[%clk 0:02:57.2]} 6... Qxb2 {[%clk 0:02:59]} 7.
Rb1 {[%clk 0:02:57]} 7... Qc3 {[%clk 0:02:59.2]} 8. Bb5 {[%clk 0:02:56]} 8... g6
{[%clk 0:02:59.2]} 9. Be5 {[%clk 0:02:39.1]} 9... Qxc5 {[%clk 0:02:47.8]} 10.
Bxf6 {[%clk 0:02:35]} 10... exf6 {[%clk 0:02:46.7]} 11. c4 {[%clk 0:02:33]}
11... dxc4 {[%clk 0:02:39.9]} 12. O-O {[%clk 0:02:21.9]} 12... Be7 {[%clk
0:02:35.4]} 13. Ne4 {[%clk 0:02:15.9]} 13... Qa3 {[%clk 0:02:34.2]} 14. Nd4
{[%clk 0:02:03.4]} 14... Bd7 {[%clk 0:02:24.2]} 15. Bxc4 {[%clk 0:01:57]} 15...
Nxd4 {[%clk 0:01:30.2]} 16. Qxd4 {[%clk 0:01:52.2]} 16... O-O-O {[%clk
0:01:14.2]} 17. Bd5 {[%clk 0:01:02.5]} 17... Bc6 {[%clk 0:01:13]} 18. Rfc1
{[%clk 0:01:01]} 18... f5 {[%clk 0:00:52.2]} 19. Qc4 {[%clk 0:00:39.5]} 19...
Rxd5 {[%clk 0:00:49.3]} 20. Qxd5 {[%clk 0:00:35.5]} 20... Qa6 {[%clk 0:00:25.5]}
21. Qxf7 {[%clk 0:00:23.9]} 21... Ba3 {[%clk 0:00:19.5]} 22. Qe6+ {[%clk
0:00:19]} 22... Kc7 {[%clk 0:00:11.6]} 23. Qe5+ {[%clk 0:00:18.8]} 23... Kc8
{[%clk 0:00:11.7]} 24. Qxh8+ {[%clk 0:00:18.6]} 24... Kc7 {[%clk 0:00:12.4]} 25.
Qxh7+ {[%clk 0:00:19]} 25... Kc8 {[%clk 0:00:11.6]} 26. Qg8+ {[%clk 0:00:17.9]}
26... Kc7 {[%clk 0:00:11.4]} 27. Qf7+ {[%clk 0:00:17]} 27... Kc8 {[%clk
0:00:11.9]} 28. Qe6+ {[%clk 0:00:12.6]} 28... Kc7 {[%clk 0:00:12.3]} 29. Qe5+
{[%clk 0:00:11.9]} 29... Kc8 {[%clk 0:00:12.8]} 30. Nd6+ {[%clk 0:00:12.2]}
30... Kd7 {[%clk 0:00:12.9]} 31. Rd1 {[%clk 0:00:10]} 31... Bxd6 {[%clk
0:00:03]} 32. Qxd6+ {[%clk 0:00:09.5]} 32... Ke8 {[%clk 0:00:03.9]} 33. Qc7
{[%clk 0:00:09.2]} 1-0

[Event "Late-Titled-Tuesday-Blitz-March-19-2024"]
[Site "Chess.com"]
[Date "2024.03.19"]
[Round "5"]
[White "TheMagician"]
[Black "wild3000"]
[Result "0-1"]
[WhiteElo "2228"]
[BlackElo "2440"]
[TimeControl "180+1"]
[EndTime "14:55:21 PDT"]
[Termination "wild3000 won on time"]

1. d4 {[%clk 0:03:00.9]} 1... Nf6 {[%clk 0:02:17.6]} 2. c4 {[%clk 0:02:48.1]}
2... e6 {[%clk 0:02:17.2]} 3. Nf3 {[%clk 0:02:47.1]} 3... d5 {[%clk 0:02:16.5]}
4. e3 {[%clk 0:02:44.6]} 4... c5 {[%clk 0:02:15.3]} 5. a3 {[%clk 0:02:40.1]}
5... a6 {[%clk 0:02:10.4]} 6. dxc5 {[%clk 0:02:38]} 6... Bxc5 {[%clk 0:02:11.3]}
7. b4 {[%clk 0:02:37.9]} 7... Be7 {[%clk 0:02:11.3]} 8. Bb2 {[%clk 0:02:38.2]}
8... O-O {[%clk 0:02:10.9]} 9. Nbd2 {[%clk 0:02:37.6]} 9... Nc6 {[%clk
0:02:10.6]} 10. Rc1 {[%clk 0:02:31.3]} 10... Bd7 {[%clk 0:02:01.5]} 11. c5
{[%clk 0:02:28.3]} 11... Re8 {[%clk 0:02:01.3]} 12. Be2 {[%clk 0:02:21.3]} 12...
Bf8 {[%clk 0:02:01.3]} 13. Ne5 {[%clk 0:02:16.8]} 13... Nxe5 {[%clk 0:02:00.8]}
14. Bxe5 {[%clk 0:02:16.9]} 14... Bc6 {[%clk 0:01:57.2]} 15. O-O {[%clk
0:01:59.6]} 15... Nd7 {[%clk 0:01:57.1]} 16. Ba1 {[%clk 0:01:55.9]} 16... e5
{[%clk 0:01:56.9]} 17. Nb3 {[%clk 0:01:45.3]} 17... Qh4 {[%clk 0:01:50.5]} 18.
Na5 {[%clk 0:01:40.2]} 18... Nf6 {[%clk 0:01:46.3]} 19. Nxc6 {[%clk 0:01:26.4]}
19... bxc6 {[%clk 0:01:47.2]} 20. Qa4 {[%clk 0:01:23.6]} 20... a5 {[%clk
0:01:32.9]} 21. g3 {[%clk 0:00:49.1]} 21... Qh3 {[%clk 0:01:30.9]} 22. Qxc6
{[%clk 0:00:44.1]} 22... axb4 {[%clk 0:01:30.1]} 23. axb4 {[%clk 0:00:43.7]}
23... Rac8 {[%clk 0:01:12.5]} 24. Qxc8 {[%clk 0:00:37.8]} 24... Qxc8 {[%clk
0:01:09.7]} 25. Rc2 {[%clk 0:00:31.1]} 25... h5 {[%clk 0:01:05.7]} 26. Rfc1
{[%clk 0:00:27.7]} 26... h4 {[%clk 0:01:05.3]} 27. b5 {[%clk 0:00:27.1]} 27...
d4 {[%clk 0:00:55.2]} 28. exd4 {[%clk 0:00:26.8]} 28... exd4 {[%clk 0:00:55.2]}
29. Bxd4 {[%clk 0:00:26.7]} 29... Ne4 {[%clk 0:00:40.3]} 30. Bf1 {[%clk
0:00:17]} 30... Ng5 {[%clk 0:00:34.5]} 31. Bg2 {[%clk 0:00:13.6]} 31... h3
{[%clk 0:00:30.8]} 32. Bh1 {[%clk 0:00:13.6]} 32... Qe6 {[%clk 0:00:28.4]} 33.
Be3 {[%clk 0:00:12.2]} 33... Qf5 {[%clk 0:00:20.8]} 34. Bxg5 {[%clk 0:00:09.6]}
34... Qxg5 {[%clk 0:00:20.9]} 35. Bc6 {[%clk 0:00:06.2]} 35... Rc8 {[%clk
0:00:16.2]} 36. Bh1 {[%clk 0:00:03]} 36... Rxc5 {[%clk 0:00:15]} 0-1

[Event "Late-Titled-Tuesday-Blitz-March-19-2024"]
[Site "Chess.com"]
[Date "2024.03.19"]
[Round "5"]
[White "GMKrikor"]
[Black "M1711"]
[Result "1-0"]
[WhiteElo "2824"]
[BlackElo "2641"]
[TimeControl "180+1"]
[EndTime "14:55:22 PDT"]
[Termination "GMKrikor won by resignation"]

1. Nf3 {[%clk 0:03:00.9]} 1... d5 {[%clk 0:02:58.4]} 2. c4 {[%clk 0:03:00.2]}
2... e6 {[%clk 0:02:55.3]} 3. d4 {[%clk 0:03:00.1]} 3... Nf6 {[%clk 0:02:55.2]}
4. Nc3 {[%clk 0:02:59.9]} 4... Nbd7 {[%clk 0:02:53.7]} 5. cxd5 {[%clk
0:02:55.6]} 5... exd5 {[%clk 0:02:53]} 6. Bf4 {[%clk 0:02:56.3]} 6... Bb4 {[%clk
0:02:48.6]} 7. e3 {[%clk 0:02:56.6]} 7... O-O {[%clk 0:02:45.8]} 8. Bd3 {[%clk
0:02:55.7]} 8... c5 {[%clk 0:02:44.2]} 9. dxc5 {[%clk 0:02:53.4]} 9... Nxc5
{[%clk 0:02:43.9]} 10. O-O {[%clk 0:02:48.6]} 10... Bg4 {[%clk 0:02:42.6]} 11.
Rc1 {[%clk 0:02:40.9]} 11... Bxf3 {[%clk 0:02:22]} 12. gxf3 {[%clk 0:02:40.2]}
12... Ne6 {[%clk 0:02:14.8]} 13. Bg3 {[%clk 0:02:35.9]} 13... Bxc3 {[%clk
0:02:05.2]} 14. Rxc3 {[%clk 0:02:32.6]} 14... d4 {[%clk 0:01:59.4]} 15. Rc1
{[%clk 0:02:26.8]} 15... dxe3 {[%clk 0:01:55.4]} 16. fxe3 {[%clk 0:02:27.7]}
16... Qb6 {[%clk 0:01:54.7]} 17. Qe2 {[%clk 0:02:26.7]} 17... Rfe8 {[%clk
0:01:53.3]} 18. Kh1 {[%clk 0:01:52.6]} 18... Rad8 {[%clk 0:01:47.7]} 19. Bc4
{[%clk 0:01:49.9]} 19... Nd4 {[%clk 0:01:38.9]} 20. Qf2 {[%clk 0:01:40.5]} 20...
Nf5 {[%clk 0:01:36.2]} 21. e4 {[%clk 0:01:39.3]} 21... Nxg3+ {[%clk 0:01:33.6]}
22. hxg3 {[%clk 0:01:36.6]} 22... Qxf2 {[%clk 0:00:58.4]} 23. Rxf2 {[%clk
0:01:36.5]} 23... g5 {[%clk 0:00:59.1]} 24. Bb3 {[%clk 0:01:18]} 24... Re7
{[%clk 0:00:57.8]} 25. g4 {[%clk 0:01:05.3]} 25... Kg7 {[%clk 0:00:48.6]} 26.
Kg2 {[%clk 0:01:01.7]} 26... Red7 {[%clk 0:00:26]} 27. Rc5 {[%clk 0:01:01.5]}
27... h6 {[%clk 0:00:25.8]} 28. Rf5 {[%clk 0:01:01.1]} 28... Ng8 {[%clk
0:00:23.1]} 29. f4 {[%clk 0:00:50.1]} 29... gxf4 {[%clk 0:00:17]} 30. R5xf4
{[%clk 0:00:47.6]} 30... Rf8 {[%clk 0:00:08.4]} 31. e5 {[%clk 0:00:47.4]} 31...
Re7 {[%clk 0:00:08.1]} 32. e6 {[%clk 0:00:46.2]} 32... f6 {[%clk 0:00:03.6]} 33.
Rd2 {[%clk 0:00:45.5]} 33... Kg6 {[%clk 0:00:01.9]} 34. Kf3 {[%clk 0:00:42.2]}
34... Rc8 {[%clk 0:00:02.1]} 35. Rfd4 {[%clk 0:00:31.1]} 35... Rec7 {[%clk
0:00:02.3]} 36. Bd5 {[%clk 0:00:26.1]} 36... Ne7 {[%clk 0:00:02.5]} 37. Be4+
{[%clk 0:00:26.9]} 37... Kg7 {[%clk 0:00:03]} 38. Rd7 {[%clk 0:00:27.1]} 38...
b6 {[%clk 0:00:03.7]} 39. Rxc7 {[%clk 0:00:14.7]} 39... Rxc7 {[%clk 0:00:04.6]}
40. Rd7 {[%clk 0:00:14.4]} 40... Rc1 {[%clk 0:00:01.5]} 41. Rxe7+ {[%clk
0:00:13.9]} 1-0